[Event "FIDE WYCC Girls U14 2023"]
[Site "Montesilvano"]
[Date "2023.11.24"]
[Round "11.9"]
[White "Ciarletta, Iris"]
[Black "Agamyradova, Mahri"]
[Result "1/2-1/2"]
[ECO "D37"]
[WhiteElo "1882"]
[BlackElo "1652"]
[Annotator "NA RC"]
[PlyCount "81"]
[EventDate "2023.11.13"]
[EventType "swiss"]
[EventCountry "ITA"]
[SourceTitle "playchess.com"]
[Source "ChessBase"]
[SourceQuality "1"]
[TimeControl "40/5400+30:1800+30"]

1. d4 {[%emt 0:00:34]} Nf6 {[%emt 0:00:08]} 2. c4 {[%emt 0:00:19]} e6 {[%emt 0:00:05]} 3. Nf3 {[%emt 0:00:23]} d5 {[%emt 0:00:01]} 4. Nc3 {[%emt 0:00:39]} Be7 {[%emt 0:00:09]} 5. cxd5 {[%emt 0:00:26]} exd5 {[%emt 0:00:03]} 6. Bf4 {[%emt 0:00:15]} c6 {[%emt 0:00:29]} 7. Qc2 {[%emt 0:00:35]} O-O {[%emt 0:02:35]} 8. e3 {[%emt 0:01:27]} Ne4 {[%emt 0:09:08]} 9. Bd3 {[%emt 0:05:24]} f5 {[%emt 0:03:29]} 10. Ne5 {[%emt 0:09:09]} Nd7 {[%emt 0:20:31]} 11. f3 {[%emt 0:06:25]} Nxe5 {[%emt 0:04:04]} 12. Bxe5 {[%emt 0:01:45]} Nxc3 {[%emt 0:07:49]} 13. bxc3 {[%emt 0:00:46]} Bd6 {[%emt 0:15:06]} 14. Bxd6 {[%emt 0:04:35]} Qxd6 {[%emt 0:00:02]} 15. O-O {[%emt 0:00:56]} Be6 {[%emt 0:02:44]} 16. e4 {[%emt 0:08:26]} fxe4 {[%emt 0:02:38]} 17. fxe4 {[%emt 0:00:25]} dxe4 {[%emt 0:00:08]} 18. Bxe4 {[%emt 0:00:10]} h6 {[%emt 0:00:03]} 19. Bf3 {[%emt 0:04:36]} Rf6 {[%emt 0:15:31]} 20. Rfe1 {[%emt 0:02:20]} Raf8 {[%emt 0:01:52]} 21. Re2 {[%emt 0:02:52]} Bc4 {[%emt 0:03:00]} 22. Re5 {[%emt 0:03:33]} Rg6 {[%emt 0:03:55]} 23. Rf5 {[%emt 0:02:01]} Rgf6 {[%emt 0:02:10]} 24. Rxf6 {[%emt 0:02:03]} Qxf6 {[%emt 0:00:02]} 25. Re1 {[%emt 0:04:00]} Qg5 {[%emt 0:01:51]} 26. Qf2 {[%emt 0:05:05]} Kh8 {[%emt 0:01:51]} 27. Re5 {[%emt 0:05:06]} Qc1+ {[%emt 0:04:00]} 28. Qe1 {[%emt 0:00:22]} Qxe1+ {[%emt 0:00:16]} 29. Rxe1 {[%emt 0:00:20]} Bxa2 {[%emt 0:00:41]} 30. Ra1 {[%emt 0:00:41]} Bc4 {[%emt 0:00:05]} 31. Rxa7 {[%emt 0:00:21]} Ba6 {[%emt 0:00:08]} 32. h3 {[%emt 0:00:36]} Rc8 {[%emt 0:00:30]} 33. Kf2 {[%emt 0:01:58]} Kg8 {[%emt 0:00:34]} 34. d5 {[%emt 0:02:22]} cxd5 {[%emt 0:00:19]} 35. Bxd5+ {[%emt 0:00:03]} Kf8 {[%emt 0:00:09]} 36. Bxb7 {[%emt 0:00:23]} Bxb7 37. Rxb7 {[%emt 0:00:05]} Rxc3 {[%emt 0:00:07]} 38. Rd7 {[%emt 0:00:30]} Ra3 {[%emt 0:00:07]} 39. Kg1 {[%emt 0:00:13]} Kg8 {[%emt 0:00:08]} 40. Kh2 {[%emt 0:00:00]} Kh7 {[%emt 0:00:00]} 41. Rb7 {[%emt 0:00:39]} 1/2-1/2

[Event "FIDE WYCC Girls U14 2023"]
[Site "Montesilvano"]
[Date "2023.11.24"]
[Round "11.10"]
[White "Toth, Lili"]
[Black "Sachi Jain"]
[Result "1-0"]
[ECO "C54"]
[WhiteElo "2199"]
[BlackElo "1743"]
[Annotator "RC"]
[PlyCount "103"]
[EventDate "2023.11.13"]
[EventType "swiss"]
[EventCountry "ITA"]
[SourceTitle "playchess.com"]
[Source "ChessBase"]
[SourceQuality "1"]
[TimeControl "40/5400+30:1800+30"]

1. e4 {[%emt 0:00:04]} e5 {[%emt 0:00:09]} 2. Nf3 {[%emt 0:00:05]} Nc6 {[%emt 0:00:44]} 3. Bc4 {[%emt 0:00:07]} Bc5 {[%emt 0:00:05]} 4. c3 {[%emt 0:00:08]} Nf6 {[%emt 0:00:46]} 5. d4 {[%emt 0:00:09]} exd4 {[%emt 0:00:08]} 6. b4 {[%emt 0:00:06]} Bb6 {[%emt 0:01:15]} 7. e5 {[%emt 0:00:40]} d5 {[%emt 0:02:56]} 8. exf6 {[%emt 0:00:12]} dxc4 {[%emt 0:00:07]} 9. Qe2+ {[%emt 0:00:07]} Be6 {[%emt 0:01:14]} 10. b5 {[%emt 0:02:12]} Na5 {[%emt 0:07:01]} 11. fxg7 {[%emt 0:01:31]} Rg8 {[%emt 0:00:02]} 12. cxd4 {[%emt 0:00:39]} Qd7 {[%emt 0:03:35]} 13. Nc3 {[%emt 0:09:14]} O-O-O {[%emt 0:00:24]} 14. Bg5 {[%emt 0:14:18]} Rde8 {[%emt 0:08:18]} 15. O-O-O {[%emt 0:00:44]} Bf5 {[%emt 0:07:05]} 16. Qd2 {[%emt 0:11:42]} Rxg7 {[%emt 0:00:32]} 17. Rhe1 {[%emt 0:00:56]} Rgg8 {[%emt 0:04:01]} 18. Rxe8+ {[%emt 0:13:17]} Rxe8 {[%emt 0:00:08]} 19. Re1 {[%emt 0:04:56]} Re6 {[%emt 0:10:03]} 20. d5 {[%emt 0:08:49]} Rxe1+ {[%emt 0:00:41]} 21. Qxe1 {[%emt 0:00:05]} c6 {[%emt 0:01:16]} 22. Qe5 {[%emt 0:04:42]} Bg6 {[%emt 0:04:00]} 23. Qh8+ {[%emt 0:06:25]} Bd8 {[%emt 0:00:25]} 24. Ne5 {[%emt 0:01:11]} Qd6 {[%emt 0:01:04]} 25. Qxd8+ {[%emt 0:02:06]} Qxd8 {[%emt 0:00:06]} 26. Bxd8 {[%emt 0:00:04]} Kxd8 {[%emt 0:00:04]} 27. bxc6 {[%emt 0:00:52]} bxc6 {[%emt 0:00:12]} 28. dxc6 {[%emt 0:00:13]} f6 {[%emt 0:01:46]} 29. Nxg6 {[%emt 0:02:06]} hxg6 {[%emt 0:00:02]} 30. Nd5 {[%emt 0:00:34]} Nxc6 {[%emt 0:00:12]} 31. Nxf6 {[%emt 0:00:04]} Nb4 {[%emt 0:01:12]} 32. Kb2 {[%emt 0:03:04]} Nd3+ {[%emt 0:02:50]} 33. Kc3 {[%emt 0:00:10]} Nxf2 {[%emt 0:00:01]} 34. Kxc4 {[%emt 0:00:05]} Ke7 {[%emt 0:00:04]} 35. Nd5+ {[%emt 0:00:34]} Kd6 {[%emt 0:00:05]} 36. Kd4 {[%emt 0:03:37]} Ng4 {[%emt 0:01:03]} 37. h4 {[%emt 0:03:05]} Ke6 {[%emt 0:05:03]} 38. Ne3 {[%emt 0:03:13]} Nh6 {[%emt 0:00:26]} 39. g4 {[%emt 0:00:48]} Nf7 {[%emt 0:00:36]} 40. a4 {[%emt 0:00:00]} Ne5 {[%emt 0:00:00]} 41. Ke4 {[%emt 0:14:55]} Nd7 {[%emt 0:02:05]} 42. a5 {[%emt 0:05:45]} Nc5+ {[%emt 0:00:10]} 43. Kf4 {[%emt 0:00:07]} Nb3 {[%emt 0:00:14]} 44. Kg5 {[%emt 0:01:06]} Nxa5 {[%emt 0:00:14]} 45. Kxg6 {[%emt 0:00:08]} Nc6 {[%emt 0:00:59]} 46. h5 {[%emt 0:00:54]} Ne5+ {[%emt 0:00:20]} 47. Kg7 {[%emt 0:00:26]} Nf7 {[%emt 0:01:00]} 48. h6 {[%emt 0:01:19]} a5 {[%emt 0:00:02]} 49. Nc4 {[%emt 0:03:14]} a4 {[%emt 0:00:47]} 50. h7 {[%emt 0:00:28]} Ke7 {[%emt 0:00:17]} 51. g5 {[%emt 0:00:40]} Ke6 {[%emt 0:00:31]} 52. g6 1-0

[Event "FIDE WYCC Girls U14 2023"]
[Site "Montesilvano"]
[Date "2023.11.24"]
[Round "11.11"]
[White "Stefan, Iulia-Cristiana"]
[Black "Negre, Emilie"]
[Result "1-0"]
[ECO "D02"]
[WhiteElo "1748"]
[BlackElo "1871"]
[Annotator "NA RC"]
[PlyCount "69"]
[EventDate "2023.11.13"]
[EventType "swiss"]
[EventCountry "ITA"]
[SourceTitle "playchess.com"]
[Source "ChessBase"]
[SourceQuality "1"]
[TimeControl "40/5400+30:1800+30"]

1. d4 {[%emt 0:00:02]} Nf6 {[%emt 0:00:11]} 2. Nf3 {[%emt 0:00:06]} d5 {[%emt 0:00:13]} 3. Bf4 {[%emt 0:00:06]} e6 {[%emt 0:00:05]} 4. e3 {[%emt 0:00:06]} Bd6 {[%emt 0:00:04]} 5. Ne5 {[%emt 0:00:04]} O-O {[%emt 0:00:15]} 6. Nd2 {[%emt 0:00:03]} c5 {[%emt 0:00:13]} 7. c3 {[%emt 0:00:05]} Qc7 {[%emt 0:00:08]} 8. Bd3 {[%emt 0:00:07]} Nc6 {[%emt 0:00:10]} 9. Ndf3 {[%emt 0:00:11]} cxd4 {[%emt 0:00:12]} 10. exd4 {[%emt 0:00:06]} Ng4 {[%emt 0:04:09]} 11. Ng5 {[%emt 0:01:38]} f5 {[%emt 0:00:14]} 12. Nxh7 {[%emt 0:02:42]} Kxh7 {[%emt 0:00:10]} 13. Qxg4 {[%emt 0:00:11]} Nxe5 {[%emt 0:00:15]} 14. dxe5 {[%emt 0:04:00]} Bxe5 {[%emt 0:00:06]} 15. Qh5+ {[%emt 0:04:39]} Kg8 {[%emt 0:00:33]} 16. Be3 {[%emt 0:08:17]} Bxc3+ {[%emt 0:28:33]} 17. bxc3 {[%emt 0:01:04]} Qxc3+ {[%emt 0:00:05]} 18. Ke2 {[%emt 0:00:25]} Qb2+ {[%emt 0:00:19]} 19. Bd2 {[%emt 0:09:12]} Qe5+ {[%emt 0:00:14]} 20. Kf3 {[%emt 0:01:58]} Qd4 {[%emt 0:00:48]} 21. Ke2 {[%emt 0:00:45]} Qe5+ {[%emt 0:00:04]} 22. Kf3 {[%emt 0:00:24]} Bd7 {[%emt 0:30:58]} 23. Rhe1 {[%emt 0:05:54]} Qd4 {[%emt 0:01:25]} 24. Ke2 {[%emt 0:00:36]} e5 {[%emt 0:14:42]} 25. Be3 {[%emt 0:04:37]} Be8 {[%emt 0:00:15]} 26. Qg5 {[%emt 0:05:13]} Qb2+ {[%emt 0:01:23]} 27. Kf1 {[%emt 0:00:42]} d4 {[%emt 0:13:35]} 28. Bd2 {[%emt 0:05:28]} e4 {[%emt 0:00:33]} 29. Reb1 {[%emt 0:02:28]} Qa3 {[%emt 0:00:45]} 30. Rb3 {[%emt 0:00:28]} Qd6 {[%emt 0:00:39]} 31. Bb4 {[%emt 0:06:53]} Qxh2 {[%emt 0:02:22]} 32. Bxf8 {[%emt 0:01:01]} Kxf8 {[%emt 0:01:16]} 33. Qxf5+ {[%emt 0:00:56]} Kg8 {[%emt 0:00:33]} 34. Bc4+ {[%emt 0:00:14]} Kh8 {[%emt 0:00:18]} 35. Rh3+ {[%emt 0:00:16]} 1-0

[Event "FIDE WYCC Girls U14 2023"]
[Site "Montesilvano"]
[Date "2023.11.24"]
[Round "11.12"]
[White "Saparya Ghosh"]
[Black "Zhang, Michelle"]
[Result "0-1"]
[ECO "D11"]
[WhiteElo "1659"]
[BlackElo "1833"]
[Annotator "NA RC"]
[PlyCount "52"]
[EventDate "2023.11.13"]
[EventType "swiss"]
[EventCountry "ITA"]
[SourceTitle "playchess.com"]
[Source "ChessBase"]
[SourceQuality "1"]
[TimeControl "40/5400+30:1800+30"]

1. d4 {[%emt 0:01:04]} d5 {[%emt 0:00:44]} 2. c4 {[%emt 0:00:04]} c6 {[%emt 0:00:43]} 3. Nf3 {[%emt 0:00:05]} Nf6 {[%emt 0:01:03]} 4. Qb3 {[%emt 0:00:05]} dxc4 {[%emt 0:04:31]} 5. Qxc4 {[%emt 0:00:07]} Bf5 {[%emt 0:02:48]} 6. g3 {[%emt 0:00:30]} e6 {[%emt 0:01:39]} 7. Bg2 {[%emt 0:00:32]} Nbd7 {[%emt 0:01:32]} 8. Nc3 {[%emt 0:00:23]} Be7 {[%emt 0:01:51]} 9. O-O {[%emt 0:00:26]} h6 {[%emt 0:02:06]} 10. Re1 {[%emt 0:09:38]} O-O {[%emt 0:07:10]} 11. e4 {[%emt 0:03:47]} Bh7 {[%emt 0:02:58]} 12. Bf4 {[%emt 0:14:10]} Rc8 {[%emt 0:04:52]} 13. a3 {[%emt 0:13:38]} c5 {[%emt 0:03:49]} 14. Rad1 {[%emt 0:24:33]} cxd4 {[%emt 0:11:14]} 15. Qxd4 {[%emt 0:00:23]} Bc5 {[%emt 0:03:12]} 16. Qd2 {[%emt 0:04:26]} Ng4 {[%emt 0:09:16]} 17. Qxd7 {[%emt 0:10:38]} Nxf2 {[%emt 0:11:52]} 18. Kf1 {[%emt 0:05:48]} Nxd1 {[%emt 0:00:57]} 19. Rxd1 {[%emt 0:08:02]} Qb6 {[%emt 0:01:36]} 20. b4 {[%emt 0:01:34]} Be3 {[%emt 0:05:02]} 21. Na4 {[%emt 0:00:33]} Qa6+ {[%emt 0:00:19]} 22. b5 {[%emt 0:00:30]} Qxa4 {[%emt 0:00:21]} 23. Bxe3 {[%emt 0:00:03]} Qxe4 {[%emt 0:01:44]} 24. Bxa7 {[%emt 0:00:49]} Rc2 {[%emt 0:02:47]} 25. Bf2 Qe2+ {[%emt 0:00:10]} 26. Kg1 {[%emt 0:01:09]} Qxf2+ {[%emt 0:00:11]} 0-1

[Event "FIDE WYCC Girls U14 2023"]
[Site "Montesilvano"]
[Date "2023.11.24"]
[Round "11.13"]
[White "Suyamin, Bonjoure Fille"]
[Black "Skramstad, Oda Kofoed"]
[Result "0-1"]
[ECO "E94"]
[WhiteElo "1570"]
[BlackElo "1801"]
[Annotator "NA RC"]
[PlyCount "62"]
[EventDate "2023.11.13"]
[EventType "swiss"]
[EventCountry "ITA"]
[SourceTitle "playchess.com"]
[Source "ChessBase"]
[SourceQuality "1"]
[TimeControl "40/5400+30:1800+30"]

1. d4 {[%emt 0:00:03]} Nf6 {[%emt 0:02:01]} 2. Nf3 {[%emt 0:00:25]} g6 {[%emt 0:00:18]} 3. c4 {[%emt 0:00:42]} Bg7 {[%emt 0:00:29]} 4. Nc3 {[%emt 0:00:23]} O-O {[%emt 0:00:21]} 5. e4 {[%emt 0:00:34]} d6 {[%emt 0:00:07]} 6. Be2 {[%emt 0:00:17]} e5 {[%emt 0:00:44]} 7. O-O {[%emt 0:00:36]} exd4 {[%emt 0:00:29]} 8. Nxd4 {[%emt 0:00:09]} Re8 {[%emt 0:00:06]} 9. f3 {[%emt 0:01:38]} c6 {[%emt 0:00:07]} 10. Bg5 {[%emt 0:02:27]} Qb6 {[%emt 0:02:32]} 11. Na4 {[%emt 0:08:04]} Qa5 {[%emt 0:00:59]} 12. Bd2 {[%emt 0:02:58]} Qd8 {[%emt 0:01:16]} 13. Nb3 {[%emt 0:07:09]} Nbd7 {[%emt 0:06:15]} 14. Bb4 {[%emt 0:05:39]} d5 {[%emt 0:04:32]} 15. cxd5 {[%emt 0:04:02]} cxd5 {[%emt 0:00:25]} 16. exd5 {[%emt 0:01:54]} Nxd5 {[%emt 0:02:38]} 17. Qxd5 {[%emt 0:01:18]} Rxe2 {[%emt 0:00:21]} 18. Rae1 {[%emt 0:01:07]} Re5 {[%emt 0:12:18]} 19. Rxe5 {[%emt 0:03:50]} Bxe5 {[%emt 0:00:08]} 20. Nbc5 {[%emt 0:02:19]} Qc7 {[%emt 0:10:34]} 21. Re1 {[%emt 0:43:07]} Bxh2+ {[%emt 0:10:24]} 22. Kh1 {[%emt 0:00:10]} Qd6 {[%emt 0:28:31]} 23. Nxd7 {[%emt 0:09:30]} Qxd7 {[%emt 0:00:24]} 24. Qc5 {[%emt 0:00:22]} Qd8 {[%emt 0:04:19]} 25. Re7 {[%emt 0:03:42]} Bg3 {[%emt 0:03:31]} 26. Nc3 {[%emt 0:00:19]} Be6 {[%emt 0:01:56]} 27. Rxb7 {[%emt 0:00:41]} Qh4+ {[%emt 0:00:45]} 28. Kg1 {[%emt 0:00:05]} Qh2+ {[%emt 0:00:17]} 29. Kf1 {[%emt 0:00:04]} Qh1+ {[%emt 0:00:15]} 30. Qg1 {[%emt 0:00:34]} Bc4+ {[%emt 0:00:07]} 31. Ne2 {[%emt 0:01:17]} Bxe2+ {[%emt 0:00:09]} 0-1

[Event "FIDE WYCC Girls U14 2023"]
[Site "Montesilvano"]
[Date "2023.11.24"]
[Round "11.14"]
[White "Orazalina, Nursulu"]
[Black "Montano Vicente, Guadalupe"]
[Result "0-1"]
[ECO "B90"]
[WhiteElo "1428"]
[BlackElo "1794"]
[Annotator "NA"]
[PlyCount "86"]
[EventDate "2023.11.13"]
[EventType "swiss"]
[EventCountry "ITA"]
[SourceTitle "playchess.com"]
[Source "ChessBase"]
[SourceQuality "1"]
[TimeControl "40/5400+30:1800+30"]

1. e4 {[%emt 0:02:04]} c5 {[%emt 0:00:19]} 2. Nf3 {[%emt 0:00:07]} d6 {[%emt 0:00:18]} 3. d4 {[%emt 0:00:06]} cxd4 {[%emt 0:00:04]} 4. Nxd4 {[%emt 0:00:07]} Nf6 {[%emt 0:00:12]} 5. Nc3 {[%emt 0:00:07]} a6 {[%emt 0:00:03]} 6. f3 {[%emt 0:00:09]} e5 {[%emt 0:00:13]} 7. Nb3 {[%emt 0:00:05]} Be6 {[%emt 0:00:07]} 8. Be3 {[%emt 0:00:06]} h5 {[%emt 0:00:17]} 9. Qd2 {[%emt 0:10:11]} Nbd7 {[%emt 0:03:08]} 10. O-O-O {[%emt 0:12:46]} Rc8 {[%emt 0:03:24]} 11. g3 {[%emt 0:09:43]} b5 {[%emt 0:11:15]} 12. Qf2 {[%emt 0:13:24]} Qc7 {[%emt 0:17:37]} 13. Nd5 {[%emt 0:05:51]} Nxd5 {[%emt 0:09:29]} 14. exd5 {[%emt 0:00:08]} Bf5 {[%emt 0:00:17]} 15. Bd3 {[%emt 0:00:26]} Bxd3 {[%emt 0:00:11]} 16. Rxd3 {[%emt 0:00:08]} b4 {[%emt 0:00:48]} 17. f4 {[%emt 0:17:32]} a5 {[%emt 0:15:55]} 18. Kb1 {[%emt 0:11:57]} a4 {[%emt 0:07:03]} 19. Nc1 {[%emt 0:00:11]} Be7 {[%emt 0:08:44]} 20. Re1 {[%emt 0:06:52]} O-O {[%emt 0:05:13]} 21. Re2 {[%emt 0:04:41]} Bf6 {[%emt 0:03:59]} 22. Qf3 {[%emt 0:02:02]} Rfe8 {[%emt 0:04:36]} 23. Rdd2 {[%emt 0:01:25]} Ra8 {[%emt 0:05:11]} 24. Bf2 {[%emt 0:00:39]} a3 {[%emt 0:01:12]} 25. bxa3 {[%emt 0:00:17]} Rxa3 {[%emt 0:00:36]} 26. Rd3 {[%emt 0:00:15]} Ra4 {[%emt 0:01:55]} 27. Qxh5 {[%emt 0:01:02]} e4 {[%emt 0:00:31]} 28. Rb3 {[%emt 0:00:19]} Nc5 {[%emt 0:00:47]} 29. Bxc5 {[%emt 0:00:08]} Qxc5 {[%emt 0:00:10]} 30. g4 {[%emt 0:00:45]} Qd4 {[%emt 0:00:29]} 31. c3 {[%emt 0:00:38]} bxc3 {[%emt 0:00:13]} 32. Rc2 {[%emt 0:00:29]} g6 {[%emt 0:00:54]} 33. Qh3 {[%emt 0:00:42]} Qxd5 {[%emt 0:00:28]} 34. f5 {[%emt 0:00:53]} e3 {[%emt 0:00:37]} 35. fxg6 {[%emt 0:00:44]} fxg6 {[%emt 0:00:09]} 36. Qf1 {[%emt 0:00:27]} Bg7 {[%emt 0:00:43]} 37. Qe2 {[%emt 0:00:24]} Rf4 {[%emt 0:00:30]} 38. Nd3 {[%emt 0:00:43]} Rf7 {[%emt 0:00:32]} 39. h3 {[%emt 0:00:31]} Qh1+ {[%emt 0:00:22]} 40. Rc1 {[%emt 0:00:00]} Qf3 {[%emt 0:00:00]} 41. Qh2 {[%emt 0:02:29]} Qc6 {[%emt 0:08:55]} 42. Qe2 {[%emt 0:02:00]} Qd5 {[%emt 0:04:14]} 43. Rd1 {[%emt 0:13:54]} Qf3 {[%emt 0:04:54]} 0-1

[Event "FIDE WYCC Girls U14 2023"]
[Site "Montesilvano"]
[Date "2023.11.24"]
[Round "11.15"]
[White "Mohd Afif, Ainul Mardhiah"]
[Black "Avetisyan, Ani"]
[Result "0-1"]
[ECO "A13"]
[WhiteElo "1478"]
[BlackElo "1770"]
[Annotator "NA"]
[PlyCount "154"]
[EventDate "2023.11.13"]
[EventType "swiss"]
[EventCountry "ITA"]
[SourceTitle "playchess.com"]
[Source "ChessBase"]
[SourceQuality "1"]
[TimeControl "40/5400+30:1800+30"]

1. c4 {[%emt 0:00:04]} e6 {[%emt 0:00:04]} 2. g3 {[%emt 0:00:08]} Nf6 {[%emt 0:00:13]} 3. Bg2 {[%emt 0:00:10]} Be7 {[%emt 0:00:22]} 4. Nf3 {[%emt 0:00:09]} O-O {[%emt 0:00:11]} 5. O-O {[%emt 0:00:15]} d5 {[%emt 0:00:08]} 6. d4 {[%emt 0:00:57]} dxc4 {[%emt 0:00:08]} 7. Qc2 {[%emt 0:00:12]} b5 {[%emt 0:00:12]} 8. a4 {[%emt 0:00:23]} b4 {[%emt 0:00:20]} 9. Qxc4 {[%emt 0:02:20]} Bb7 {[%emt 0:10:14]} 10. Bf4 {[%emt 0:12:26]} Nd5 {[%emt 0:02:59]} 11. Ne5 {[%emt 0:04:43]} Nb6 {[%emt 0:02:21]} 12. Qd3 {[%emt 0:00:57]} Bxg2 {[%emt 0:00:45]} 13. Kxg2 {[%emt 0:00:15]} c5 {[%emt 0:01:12]} 14. dxc5 {[%emt 0:03:14]} Bxc5 {[%emt 0:01:15]} 15. Qc2 {[%emt 0:00:45]} Qe7 {[%emt 0:04:50]} 16. e4 {[%emt 0:11:07]} Rc8 {[%emt 0:05:39]} 17. Qe2 {[%emt 0:02:45]} N8d7 {[%emt 0:04:36]} 18. Nf3 {[%emt 0:04:32]} a5 {[%emt 0:03:34]} 19. Nbd2 {[%emt 0:00:46]} e5 {[%emt 0:02:01]} 20. Be3 {[%emt 0:00:30]} Bxe3 {[%emt 0:01:41]} 21. Qxe3 {[%emt 0:00:47]} Rc2 {[%emt 0:01:43]} 22. b3 {[%emt 0:05:10]} Rac8 {[%emt 0:01:41]} 23. Rfd1 {[%emt 0:04:12]} Nc5 {[%emt 0:09:48]} 24. Rac1 {[%emt 0:02:32]} Rxc1 {[%emt 0:03:52]} 25. Rxc1 {[%emt 0:01:58]} Rc7 {[%emt 0:01:41]} 26. Qe2 {[%emt 0:06:17]} Nbd7 {[%emt 0:18:38]} 27. Qb5 {[%emt 0:06:41]} Ra7 {[%emt 0:01:59]} 28. Qc6 {[%emt 0:03:49]} h6 {[%emt 0:02:31]} 29. Qd5 {[%emt 0:01:00]} Ra6 {[%emt 0:15:06]} 30. Nxe5 {[%emt 0:18:32]} Rd6 {[%emt 0:00:24]} 31. Qa8+ {[%emt 0:00:10]} Kh7 {[%emt 0:00:01]} 32. Nxd7 {[%emt 0:01:31]} Nxd7 {[%emt 0:02:16]} 33. Nc4 {[%emt 0:01:53]} Rd4 {[%emt 0:00:02]} 34. Re1 {[%emt 0:00:40]} Nc5 {[%emt 0:01:12]} 35. Nxa5 {[%emt 0:01:05]} Nd3 {[%emt 0:00:37]} 36. Re2 {[%emt 0:00:42]} Qg5 {[%emt 0:00:15]} 37. Qa7 {[%emt 0:04:49]} Nf4+ {[%emt 0:00:35]} 38. Kf1 {[%emt 0:00:12]} Nxe2 {[%emt 0:00:01]} 39. Kxe2 {[%emt 0:00:15]} Rxe4+ {[%emt 0:01:04]} 40. Kf1 {[%emt 0:00:00]} Qg4 {[%emt 0:00:00]} 41. Kg2 {[%emt 0:00:57]} Qg6 {[%emt 0:06:56]} 42. Qc5 {[%emt 0:01:17]} Qf6 {[%emt 0:05:49]} 43. Qc2 {[%emt 0:00:45]} Qg6 {[%emt 0:01:16]} 44. Nc6 {[%emt 0:02:56]} f5 {[%emt 0:04:34]} 45. f3 {[%emt 0:02:12]} Re3 {[%emt 0:01:36]} 46. Nxb4 {[%emt 0:02:25]} Qe6 {[%emt 0:00:16]} 47. Qc4 {[%emt 0:01:49]} Qxc4 {[%emt 0:02:39]} 48. bxc4 {[%emt 0:00:08]} Rc3 {[%emt 0:00:13]} 49. Nd5 {[%emt 0:01:13]} Rxc4 {[%emt 0:00:12]} 50. Nb6 {[%emt 0:01:19]} Rb4 {[%emt 0:01:12]} 51. a5 {[%emt 0:00:40]} Rb5 {[%emt 0:00:01]} 52. Nc4 {[%emt 0:00:42]} Rc5 {[%emt 0:00:12]} 53. Ne3 {[%emt 0:01:05]} Rxa5 {[%emt 0:00:01]} 54. g4 {[%emt 0:01:42]} f4 {[%emt 0:01:33]} 55. Nd1 {[%emt 0:00:16]} Ra2+ {[%emt 0:01:40]} 56. Nf2 {[%emt 0:00:16]} g5 {[%emt 0:03:25]} 57. Kg1 {[%emt 0:00:58]} Ra1+ {[%emt 0:00:13]} 58. Kg2 {[%emt 0:00:10]} Ra2 {[%emt 0:00:03]} 59. Kg1 {[%emt 0:00:05]} Kg6 {[%emt 0:00:20]} 60. Ne4 {[%emt 0:01:07]} Re2 {[%emt 0:01:48]} 61. Nf2 {[%emt 0:00:57]} Kf6 {[%emt 0:00:48]} 62. Kg2 {[%emt 0:00:21]} Ke5 {[%emt 0:01:05]} 63. Kh3 {[%emt 0:02:11]} Re3 {[%emt 0:00:18]} 64. Kg2 {[%emt 0:00:11]} Kd4 {[%emt 0:00:21]} 65. h4 {[%emt 0:01:22]} Re2 {[%emt 0:02:16]} 66. hxg5 {[%emt 0:01:58]} hxg5 {[%emt 0:04:17]} 67. Kh3 {[%emt 0:00:53]} Kc3 {[%emt 0:00:38]} 68. Nd1+ {[%emt 0:02:42]} Kc2 {[%emt 0:01:02]} 69. Nf2 {[%emt 0:01:03]} Kd2 {[%emt 0:01:02]} 70. Ne4+ {[%emt 0:02:06]} Rxe4 {[%emt 0:00:34]} 71. fxe4 {[%emt 0:00:13]} f3 {[%emt 0:00:02]} 72. Kg3 {[%emt 0:00:37]} Ke2 {[%emt 0:00:01]} 73. e5 {[%emt 0:00:16]} f2 {[%emt 0:00:06]} 74. e6 {[%emt 0:00:07]} f1=Q {[%emt 0:00:09]} 75. e7 {[%emt 0:00:32]} Qf3+ {[%emt 0:00:16]} 76. Kh2 {[%emt 0:00:06]} Kf2 {[%emt 0:00:10]} 77. e8=Q {[%emt 0:00:11]} Qg2# 0-1

[Event "FIDE WYCC Girls U14 2023"]
[Site "Montesilvano"]
[Date "2023.11.24"]
[Round "11.16"]
[White "Sodgerelt Naranbold"]
[Black "Mueller, Riyanna"]
[Result "1-0"]
[ECO "B01"]
[WhiteElo "1419"]
[BlackElo "1754"]
[Annotator "NA"]
[PlyCount "27"]
[EventDate "2023.11.13"]
[EventType "swiss"]
[EventCountry "ITA"]
[SourceTitle "playchess.com"]
[Source "ChessBase"]
[SourceQuality "1"]
[TimeControl "40/5400+30:1800+30"]

1. e4 {[%emt 0:01:53]} d5 {[%emt 0:00:09]} 2. exd5 {[%emt 0:00:27]} Qxd5 {[%emt 0:00:09]} 3. Nf3 {[%emt 0:00:04]} Bg4 {[%emt 0:00:09]} 4. Be2 {[%emt 0:00:08]} Nc6 {[%emt 0:00:17]} 5. d4 {[%emt 0:00:26]} O-O-O {[%emt 0:00:19]} 6. Be3 {[%emt 0:00:12]} e5 {[%emt 0:00:42]} 7. Nc3 {[%emt 0:12:15]} Qa5 {[%emt 0:10:45]} 8. Nxe5 {[%emt 0:01:05]} Bxe2 {[%emt 0:00:15]} 9. Qxe2 {[%emt 0:04:26]} Nxe5 {[%emt 0:04:55]} 10. dxe5 {[%emt 0:00:14]} Qxe5 {[%emt 0:00:36]} 11. O-O {[%emt 0:00:24]} Bb4 {[%emt 0:01:37]} 12. Qg4+ {[%emt 0:00:13]} f5 {[%emt 0:06:03]} 13. Qxb4 {[%emt 0:00:34]} Nf6 {[%emt 0:00:52]} 14. Nb5 {[%emt 0:00:59]} 1-0